fUSD/lending_fUSD_20240418
["ID","MTS","AMOUNT","RATE_DAILY","PERIOD"]
[322883144,1713473440954,-257.59616578,0.00017999,2]
[322883151,1713473441012,-329.6141322,0.00017999,2]
[322883153,1713473441023,-2945.99999991,0.00017999,2]
[322883156,1713473441035,-6602.69264074,0.00017999,2]
[322883166,1713473441121,-1620.000003,0.00017999,2]
[322883190,1713473441487,-190798.0112799,0.00017999,2]
[322883191,1713473441499,-9136.80152,0.00017999,2]
[322883192,1713473441510,-1107.04928328,0.00017999,2]
[322883193,1713473441714,-564.16199982,0.00017999,2]
[322883194,1713473441725,-370.262,0.00017999,2]
[322883195,1713473441737,-254.5805,0.00017999,2]
[322883196,1713473441837,-22661.12822424,0.00017999,2]
[322883197,1713473441848,-1444.0,0.00017999,2]
[322883198,1713473441859,-6434.3,0.00017999,2]
[322883237,1713473444609,-1003.24613563,0.00017999,2]
[322883238,1713473444620,-300.0,0.00017999,2]
[322883239,1713473444631,-840.00000001,0.00017999,2]
[322883240,1713473444642,-500.0,0.00017999,2]
[322883241,1713473444676,-7233.0,0.00017999,2]
[322883242,1713473444687,-503.99410468,0.00017999,2]
[322883243,1713473444699,-326.33999996,0.00017999,2]
[322883244,1713473444717,-2995.42046892,0.00017999,2]
[322883245,1713473444743,-2629.3481859,0.00017999,2]
[322883246,1713473444755,-344.10978337,0.00017999,2]
[322883247,1713473444788,-324.7779371,0.00017999,2]
[322883248,1713473444799,-320.49121084,0.00017999,2]
[322883249,1713473444810,-925.50594997,0.00017999,2]
[322883250,1713473444820,-427.149998,0.00017999,2]
[322883251,1713473444832,-1502.81579274,0.00017999,2]
[322883252,1713473444873,-1279.66329309,0.00017999,2]
[322883253,1713473444887,-1407.0,0.00017999,2]
[322883254,1713473444898,-4704.000003,0.00017999,2]
[322883255,1713473444911,-328.04999985,0.00017999,2]
[322883256,1713473444980,-617.2666498,0.00017999,2]
[322883257,1713473444992,-600.0000055,0.00017999,2]
[322883262,1713473447773,-150.0,0.00017473,2]
[322883263,1713473447782,-150.0,0.00017473,2]
[322883264,1713473447791,-1240.77728023,0.00017998,2]
[322883265,1713473447800,-3396.21258627,0.00017998,2]
[322883266,1713473447809,-26404.46240657,0.00017999,2]
[322883267,1713473447821,-885.55099762,0.00017999,2]
[322883268,1713473447832,-23797.36018577,0.00017999,2]
[322883269,1713473447845,-267.34084464,0.00017999,2]
[322883270,1713473447857,-800.8,0.00017999,2]
[322883271,1713473447868,-982.5,0.00017999,2]
[322883272,1713473447880,-3358.43942711,0.00017999,2]
[322883273,1713473447891,-56194.11190998,0.00017999,2]
[322883274,1713473447903,-48466.41276815,0.00017999,2]
[322883275,1713473447953,-9454.73232262,0.00017999,2]
[322883276,1713473447964,-3049.99228242,0.00017999,2]
[322883277,1713473447975,-6458.5,0.00017999,2]
[322883278,1713473447986,-2130.99995,0.00017999,2]
[322883279,1713473448002,-529.875,0.00017999,2]
[322883280,1713473448030,-2287.15044994,0.00017999,2]
[322883281,1713473448041,-589.7524,0.00017999,2]
[322883282,1713473448101,-325.44826625,0.00017999,2]
[322883283,1713473448115,-5743.21401294,0.00017999,2]
[322883284,1713473448126,-5700.0,0.00017999,2]
[322883285,1713473448138,-3975.80907621,0.00017999,2]
[322883286,1713473448150,-626.10924374,0.00017999,2]
[322883287,1713473448162,-5005.0,0.00017999,2]
[322883288,1713473448173,-4995.0,0.00017999,2]
[322883289,1713473448196,-462.04221,0.00017999,2]
[322883290,1713473448207,-2500.0,0.00017999,2]
[322883291,1713473448218,-1374.97521,0.00017999,2]
[322883292,1713473448261,-11026.5985078,0.00017999,2]
[322883293,1713473448272,-12925.8,0.00017999,2]
[322883294,1713473448284,-447.26879721,0.00017999,2]
[322883295,1713473448295,-407.35539346,0.00017999,2]
[322883296,1713473448307,-8760.27938769,0.00017999,2]
[322883297,1713473473036,150.0,0.000154,2]
[322883298,1713473551933,706.56305197,0.00015,2]
[322883299,1713473581327,439.46,0.00015,2]
[322883300,1713473628931,151.0,0.000243,120]
[322883302,1713473728379,660.51,0.00014856,2]
[322883305,1713473827807,165.43,0.00024811,120]
[322883307,1713473856907,151.0,0.0002444,120]
[322883308,1713474273023,627.48,0.0001426,2]
[322883309,1713474347743,151.0,0.00024521,120]
[322883334,1713474632986,-155.0,0.00015864,2]
[322883335,1713474632996,-1870.666075,0.00015865,2]
[322883336,1713474633007,-173.00156984,0.00015865,2]
[322883337,1713474633017,-1000.0,0.00015866,2]
[322883338,1713474633026,-155.78336681,0.00015868,2]
[322883339,1713474633035,-616.86329004,0.00015968,2]
[322883340,1713474633046,-24.60897463,0.00015968,2]
[322883341,1713474633056,-155.78336681,0.00015994,2]
[322883342,1713474633065,-315.50755769,0.00016,2]
[322883343,1713474633077,-675.34496719,0.00016,2]
[322883344,1713474633171,-259.14747512,0.00016,2]
[322883345,1713474633180,-250.0,0.00016001,2]
[322883346,1713474633191,-165.78,0.00016062,2]
[322883347,1713474633200,-155.78336681,0.00016119,2]
[322883348,1713474633209,-605.54,0.0001612,2]
[322883349,1713474633217,-108.53058763,0.0001612,2]
[322883350,1713474633385,-41.46941237,0.0001612,2]
[322883351,1713474633396,-6109.99197356,0.00016121,2]
[322883364,1713474639238,-17790.00802644,0.00016121,2]
[322883365,1713474639248,-3868.78,0.00016202,2]
[322883366,1713474639257,-155.78336681,0.00016245,2]
[322883367,1713474639266,-150.0,0.00016248,2]
[322883368,1713474639276,-403.32,0.00016251,2]
[322883369,1713474639285,-155.78336681,0.00016371,2]
[322883370,1713474639294,-163.0,0.00016496,2]
[322883371,1713474639303,-155.78336681,0.00016496,2]
[322883372,1713474639313,-627.48,0.00016524,2]
[322883373,1713474639322,-165.43,0.00016541,2]
[322883374,1713474639331,-155.78336681,0.00016622,2]
[322883375,1713474639340,-155.78336681,0.00016748,2]
[322883376,1713474639349,-8831.53,0.00016798,2]
[322883377,1713474639358,-499.99,0.00016799,2]
[322883378,1713474639368,-466.46,0.00016799,2]
[322883379,1713474639377,-16607.6172,0.00016799,2]
[322883380,1713474639390,-596.68,0.00016844,2]
[322883381,1713474639400,-155.78336681,0.00016873,2]
[322883382,1713474639409,-242.11931668,0.00016898,2]
[322883383,1713474639418,-331.24742149,0.00016898,2]
[322883384,1713474639428,-319.73553725,0.00016898,2]
[322883385,1713474639437,-274.46770814,0.00016898,2]
[322883386,1713474639451,-2220.53200739,0.00016898,2]
[322883387,1713474639461,-97466.12783752,0.000169,3]
[322883388,1713474639471,-162.06,0.0001699,2]
[322883389,1713474639480,-155.78336681,0.00016999,2]
[322883390,1713474639489,-44858.18902653,0.00017,2]
[322883482,1713474641614,-376110.8727255,0.00017,2]
[322883483,1713474641642,-364.7088987,0.00017,2]
[322883484,1713474641654,-1913.24561988,0.00017,2]
[322883490,1713474644255,-1000.87999974,0.00017,2]
[322883491,1713474644267,-704.733448,0.00017,2]
[322883492,1713474644366,-4699.70520566,0.00017,2]
[322883493,1713474644405,-4778.56233376,0.00017,2]
[322883501,1713474647774,-202080.90098935,0.00017,2]
[322883502,1713474647786,-100516.85690598,0.00017,2]
[322883503,1713474647796,-5889.0,0.00017099,2]
[322883504,1713474647805,-2703.0,0.00017099,2]
[322883505,1713474647815,-2450.674,0.00017099,2]
[322883506,1713474647825,-1055.0,0.00017099,2]
[322883507,1713474647835,-413.12093978,0.0001718,2]
[322883508,1713474647844,-600.0,0.0001728,2]
[322883509,1713474647854,-167.02,0.00017349,2]
[322883510,1713474647863,-2328.0,0.000174,2]
[322883511,1713474647874,-461.0,0.00017473,2]
[322883512,1713474647883,-2293.0,0.00017473,2]
[322883513,1713474647892,-1392.0,0.00017473,2]
[322883514,1713474647901,-969.0,0.00017473,2]
[322883515,1713474647912,-541.0,0.00017473,2]
[322883516,1713474647922,-1254.0,0.00017473,2]
[322883517,1713474647932,-1327.546,0.00017473,2]
[322883518,1713474647942,-807.0,0.00017473,2]
[322883519,1713474647952,-1949.0,0.00017473,2]
[322883520,1713474647962,-436.0,0.00017473,2]
[322883521,1713474647972,-609.0,0.00017473,2]
[322883522,1713474647981,-3078.0,0.00017473,2]
[322883523,1713474647989,-1472.0,0.00017473,2]
[322883524,1713474647998,-2442.0,0.00017473,2]
[322883525,1713474648008,-399.0,0.00017473,2]
[322883526,1713474648018,-1638.0,0.00017473,2]
[322883527,1713474648026,-214.0,0.00017473,2]
[322883528,1713474648035,-355.0,0.00017473,2]
[322883529,1713474648044,-443.0,0.00017473,2]
[322883530,1713474648053,-150.0,0.000175,2]
[322883531,1713474648062,-199.7,0.00017535,2]
[322883532,1713474648070,-413.12093976,0.00017569,2]
[322883533,1713474648079,-150.0,0.00017686,2]
[322883534,1713474648088,-200.0,0.00017697,2]
[322883535,1713474648097,-1000.0,0.00017697,2]
[322883536,1713474648106,-171.25463459,0.0001778,2]
[322883537,1713474648115,-185.41458989,0.00017799,2]
[322883538,1713474648124,-171.41522795,0.00017799,2]
[322883539,1713474648133,-20329.42901292,0.00017799,2]
[322883540,1713474648142,-538.027,0.0001782,2]
[322883541,1713474648151,-600.0,0.00017828,2]
[322883542,1713474648160,-303.009043,0.00017855,2]
[322883543,1713474648169,-1000.0,0.00017855,2]
[322883544,1713474648178,-11712.20087105,0.0001788,2]
[322883545,1713474648188,-11712.20087103,0.0001788,2]
[322883546,1713474648197,-11712.20087103,0.0001788,2]
[322883547,1713474648209,-24184.02877028,0.0001788,2]
[322883548,1713474648219,-24184.02877022,0.0001788,2]
[322883549,1713474648229,-24184.02877022,0.0001788,2]
[322883550,1713474648238,-5909.28057563,0.00017895,2]
[322883551,1713474648248,-1297.10618032,0.00017895,2]
[322883552,1713474648258,-685.0,0.00017899,2]
[322883553,1713474648267,-2305.2564,0.00017899,2]
[322883554,1713474648277,-23470.03966013,0.00017899,2]
[322883555,1713474648627,-783.36581766,0.00017899,2]
[322883556,1713474648662,-407.62455743,0.00017899,2]
[322883557,1713474765306,599.12,0.00015011,2]
[322883558,1713474827072,164.63,0.00025151,120]
[322883559,1713475317997,569.16,0.00013847,2]
[322883560,1713475326228,155.0,0.00013846,2]
[322883561,1713475370163,-162.20286993,0.00025,30]
[322883562,1713475370187,-3000.0,0.00025,30]
[322883563,1713475370213,-151.0,0.00025096,30]
[322883564,1713475370236,-31953.28836843,0.00025111,90]
[322883565,1713475370264,-4964733.50876164,0.000255,30]
[322883566,1713475382067,-5000000.0,0.000255,30]
[322883567,1713475795498,540.7,0.00013836,2]
[322883575,1713475831893,-155.0,0.00015669,2]
[322883577,1713475831902,-164.40528699,0.0001567,2]
[322883578,1713475831911,-687.10463362,0.0001567,2]
[322883579,1713475831922,-371.27701649,0.0001567,2]
[322883581,1713475831939,-517.9614323,0.0001567,2]
[322883583,1713475831950,-601.98121155,0.0001567,2]
[322883585,1713475831959,-201.12900455,0.00015671,2]
[322883598,1713475832070,-798.87099545,0.00015671,2]
[322883600,1713475832079,-150.0,0.00015686,2]
[322883602,1713475832088,-217.91633544,0.00015687,4]
[322883604,1713475832099,-1272.24,0.00015687,4]
[322883606,1713475832111,-2929.91612023,0.00015687,4]
[322883609,1713475832122,-431.18512968,0.00015687,4]
[322883614,1713475832234,-1374.08273652,0.00015687,4]
[322883615,1713475832244,-1822.21277453,0.000157,2]
[322883616,1713475832253,-695.88,0.00015721,2]
[322883617,1713475832262,-1395.29598161,0.00015723,2]
[322883618,1713475832275,-484.32,0.00015723,2]
[322883619,1713475832286,-665.08469825,0.00015723,2]
[322883620,1713475832316,-685.05424735,0.00015723,2]
[322883622,1713475832327,-576.32490571,0.00015723,2]
[322883623,1713475832448,-120.70016708,0.00015723,2]
[322883624,1713475832457,-3860.78671925,0.00015729,2]
[322883625,1713475832468,-404.406,0.00015729,2]
[322883626,1713475832522,-4318.56012524,0.00015729,2]
[322883630,1713475838664,-3466.66028671,0.00015729,2]
[322883631,1713475838676,-294.18691223,0.00015729,2]
[322883632,1713475838816,-1899.02995657,0.00015729,2]
[322883633,1713475838826,-123.66495363,0.00015729,2]
[322883634,1713475838837,-376.33504637,0.00015729,2]
[322883635,1713475838846,-200.0,0.00015735,2]
[322883636,1713475838856,-153.48724115,0.00015752,2]
[322883637,1713475838874,-96.51275885,0.00015752,2]
[322883638,1713475838884,-499.99,0.00015752,2]
[322883639,1713475838893,-200.0,0.00015754,2]
[322883640,1713475838902,-322.66,0.00015759,2]
[322883641,1713475838912,-1465.73,0.0001576,2]
[322883642,1713475838921,-163.0,0.0001576,2]
[322883643,1713475838931,-677.34,0.0001576,2]
[322883644,1713475838941,-339.86,0.00015893,2]
[322883645,1713475838951,-339.86,0.00015937,2]
[322883646,1713475838960,-339.86,0.0001598,2]
[322883647,1713475838970,-1250.0,0.00016,2]
[322883648,1713475838979,-339.86,0.00016024,2]
[322883649,1713475838987,-339.86,0.00016067,2]
[322883650,1713475838997,-540.7,0.000161,2]
[322883651,1713475839007,-339.86,0.00016111,2]
[322883652,1713475839016,-339.86,0.00016155,2]
[322883653,1713475839026,-339.86,0.00016198,2]
[322883654,1713475839035,-339.86,0.00016242,2]
[322883655,1713475839045,-339.86,0.00016285,2]
[322883656,1713475839057,-339.86,0.00016329,2]
[322883657,1713475839066,-339.86,0.00016373,2]
[322883658,1713475839076,-339.86,0.00016416,2]
[322883659,1713475839085,-226.2186344,0.0001646,2]
[322883660,1713475839166,-113.6413656,0.0001646,2]
[322883661,1713475839175,-266.24599151,0.00016503,2]
[322883662,1713475839186,-73.61400849,0.00016503,2]
[322883663,1713475839195,-339.86,0.00016547,2]
[322883664,1713475839204,-339.86,0.00016591,2]
[322883665,1713475839213,-111.51060446,0.00016634,2]
[322883666,1713475839223,-228.34939554,0.00016634,2]
[322883667,1713475839233,-339.86,0.00016678,2]
[322883668,1713475839242,-68.63060446,0.00016721,2]
[322883669,1713475839260,-271.22939554,0.00016721,2]
[322883670,1713475839270,-591.14,0.00016722,2]
[322883671,1713475839280,-591.14,0.00016726,2]
[322883672,1713475839289,-591.14,0.00016731,2]
[322883673,1713475839299,-591.14,0.00016735,2]
[322883674,1713475839315,-591.14,0.00016739,2]
[322883675,1713475839324,-591.14,0.00016744,2]
[322883676,1713475839333,-591.14,0.00016748,2]
[322883677,1713475839342,-591.14,0.00016753,2]
[322883678,1713475839351,-591.14,0.00016757,2]
[322883679,1713475839360,-591.14,0.00016762,2]
[322883680,1713475839368,-82.92063991,0.00016766,2]
[322883681,1713475839379,-508.21936009,0.00016766,2]
[322883682,1713475839389,-164.63,0.00016767,2]
[322883683,1713475839397,-591.14,0.0001677,2]
[322883684,1713475839406,-307.28664111,0.00016775,2]
[322883685,1713475839418,-283.85335889,0.00016775,2]
[322883686,1713475839427,-591.14,0.00016779,2]
[322883687,1713475839436,-450.81884653,0.00016784,2]
[322883688,1713475839448,-140.32115347,0.00016784,2]
[322883689,1713475839457,-591.14,0.00016788,2]
[322883691,1713475839467,-591.14,0.00016792,2]
[322883692,1713475839476,-591.14,0.00016797,2]
[322883693,1713475839484,-591.14,0.00016801,2]
[322883694,1713475839493,-591.14,0.00016806,2]
[322883695,1713475839502,-153.32,0.00016809,2]
[322883696,1713475839511,-155.0,0.000169,2]
[322883697,1713475839520,-575.60937948,0.000169,2]
[322883698,1713475839532,-10298.54772052,0.000169,2]
[322883699,1713475839541,-500.0,0.000169,2]
[322883700,1713475839551,-175.47432567,0.00016999,2]
[322883701,1713475839564,-150.0,0.00017178,2]
[322883702,1713475839573,-500.0,0.0001728,2]
[322883703,1713475839583,-167.33,0.00017388,2]
[322883704,1713475839592,-2312.0,0.000174,2]
[322883705,1713475839601,-436.0,0.00017463,2]
[322883706,1713475839611,-728.0,0.00017463,2]
[322883707,1713475839620,-609.0,0.00017463,2]
[322883708,1713475839629,-1949.0,0.00017463,2]
[322883709,1713475839638,-1472.0,0.00017463,2]
[322883710,1713475839647,-1373.807,0.00017463,2]
[322883711,1713475839657,-1638.0,0.00017463,2]
[322883712,1713475839666,-214.0,0.00017463,2]
[322883713,1713475839675,-443.0,0.00017463,2]
[322883714,1713475839685,-355.0,0.00017463,2]
[322883715,1713475839694,-2703.0,0.00017463,2]
[322883716,1713475839703,-1392.0,0.00017463,2]
[322883717,1713475839713,-969.0,0.00017463,2]
[322883718,1713475839723,-461.0,0.00017463,2]
[322883719,1713475839732,-4624.797,0.00017463,2]
[322883720,1713475839740,-2293.0,0.00017463,2]
[322883721,1713475839750,-1055.0,0.00017463,2]
[322883722,1713475839759,-1228.0,0.00017463,2]
[322883723,1713475839768,-322.66,0.00017729,2]
[322883724,1713475839778,-677.34,0.00017731,2]
[322883725,1713475839790,-526.2102462,0.00017798,2]
[322883726,1713475839800,-160.81941679,0.00017798,2]
[322883727,1713475839812,-953.0094624,0.00017798,2]
[322883728,1713475839821,-523.66195964,0.00017799,2]
[322883729,1713475839832,-1012.82052678,0.000178,2]
[322883730,1713475839904,-2936.09954424,0.000178,2]
[322883731,1713475842073,-541.0,0.00017463,2]
[322883732,1713475842083,-97319.41873366,0.000178,2]
[322883733,1713475842093,-1000.0,0.00017806,2]
[322883734,1713475842103,-500.0,0.00017806,2]
[322883735,1713475842113,-200.0,0.00017806,2]
[322883736,1713475842123,-251.27451082,0.00017812,2]
[322883737,1713475842134,-500.0,0.00017828,2]
[322883738,1713475842143,-500.0,0.00017855,2]
[322883739,1713475842152,-31190.46435454,0.0001788,2]
[322883740,1713475842161,-8907.47538104,0.0001788,2]
[322883741,1713475842171,-6834.90759872,0.00017893,2]
[322883742,1713475842180,-2723.2487,0.00017894,2]
[322883743,1713475842189,-38504.72867483,0.00017894,2]
[322883744,1713475842200,-647.56071899,0.00017894,2]
[322883745,1713475842212,-3531.82491885,0.00017894,2]
[322883748,1713475842257,-7058.3,0.00017894,2]
[322883750,1713475842268,-1097.72747726,0.00017894,2]
[322883752,1713475842286,-31894.0,0.00017894,2]
[322883753,1713475842327,-611.2045331,0.00017894,2]
[322883758,1713475842383,-476.56979241,0.00017894,2]
[322883760,1713475842394,-252.43701998,0.00017894,2]
[322883776,1713475842450,-15925.64686458,0.00017894,2]
[322883779,1713475842460,-1000.0,0.00017894,2]
[322883782,1713475842469,-175.58953541,0.00017895,2]
[322883785,1713475842479,-185.41458989,0.00017895,2]
[322883787,1713475842488,-170.35086477,0.00017895,2]
[322883789,1713475842497,-20438.30692679,0.00017895,2]
[322883791,1713475842506,-190.2507398,0.00017895,2]
[322883792,1713475842515,-171.25463459,0.00017895,2]
[322883794,1713475842524,-599.0425219,0.00017895,2]
[322883796,1713475842533,-474.31209,0.00017899,2]
[322883798,1713475842542,-7500.0,0.000179,2]
[322883800,1713475842551,-225.47192854,0.000179,2]
[322883802,1713475842565,-1437.21864301,0.000179,2]
[322883804,1713475842574,-3939.52038374,0.000179,2]
[322883806,1713475842586,-864.73745354,0.000179,2]
[322883807,1713475842595,-162.06,0.00017984,2]
[322883808,1713475842604,-156.51142689,0.00017984,2]
[322883809,1713475842614,-162.06,0.0001799,2]
[322883810,1713475842623,-156.51142689,0.0001799,2]
[322883811,1713475842632,-157.041906,0.00017991,2]
[322883812,1713475842642,-157.041906,0.00017991,2]
[322883813,1713475842651,-157.041906,0.00017991,2]
[322883814,1713475842661,-157.041906,0.00017991,2]
[322883815,1713475842671,-157.041906,0.00017991,2]
[322883816,1713475842680,-157.041906,0.00017991,2]
[322883817,1713475842689,-157.041906,0.00017991,2]
[322883818,1713475842699,-157.041906,0.00017991,2]
[322883819,1713475842708,-240.05304239,0.00017992,2]
[322883820,1713475842717,-522.28292988,0.00017992,2]
[322883821,1713475842726,-4191.3354,0.00017992,2]
[322883822,1713475842736,-166.94364196,0.00017992,2]
[322883823,1713475842745,-155.0,0.00017992,2]
[322883824,1713475842754,-155.0,0.00017992,2]
[322883825,1713475842763,-342.94151451,0.00017992,2]
[322883826,1713475842772,-155.17839332,0.00017992,2]
[322883827,1713475842786,-174.16559919,0.00017992,2]
[322883828,1713475842795,-704.18979387,0.00017992,2]
[322883829,1713475842807,-206.54437025,0.00017992,2]
[322883830,1713475842816,-375.99594554,0.00017992,2]
[322883831,1713475842826,-207.28883958,0.00017992,2]
[322883832,1713475842836,-301.07124124,0.00017992,2]
[322883833,1713475842845,-155.39757706,0.00017992,2]
[322883834,1713475842855,-353.57414038,0.00017992,2]
[322883835,1713475842865,-407.97409068,0.00017992,2]
[322883836,1713475842874,-363.00732385,0.00017992,2]
[322883837,1713475842884,-545.63051093,0.00017992,2]
[322883838,1713475842892,-408.60422186,0.00017992,2]
[322883840,1713475842901,-155.0,0.00017992,2]
[322883842,1713475842910,-221.58896376,0.00017992,2]
[322883844,1713475842919,-1653.06228643,0.00017992,2]
[322883845,1713475842928,-156.3850435,0.00017992,2]
[322883846,1713475842937,-155.0,0.00017992,2]
[322883847,1713475842946,-1058.36793939,0.00017992,2]
[322883848,1713475842955,-267.13908293,0.00017992,2]
[322883849,1713475842964,-680.8066243,0.00017992,2]
[322883850,1713475842973,-397.3328317,0.00017992,2]
[322883851,1713475842982,-155.30008766,0.00017992,2]
[322883852,1713475842992,-155.0,0.00017992,2]
[322883853,1713475843001,-155.0,0.00017992,2]
[322883854,1713475843010,-155.0,0.00017992,2]
[322883855,1713475843018,-200.07388486,0.00017992,2]
[322883856,1713475843028,-155.0,0.00017992,2]
[322883857,1713475843036,-194.18145296,0.00017992,2]
[322883858,1713475843046,-180.68788228,0.00017992,2]
[322883859,1713475843057,-262.78844002,0.00017992,2]
[322883860,1713475843066,-597.96032771,0.00017992,2]
[322883861,1713475843075,-157.40175635,0.00017992,2]
[322883862,1713475843085,-325.32875202,0.00017992,2]
[322883863,1713475843094,-618.71071819,0.00017992,2]
[322883864,1713475843103,-239.68779562,0.00017992,2]
[322883865,1713475843112,-2354.33560631,0.00017992,2]
[322883866,1713475843121,-155.2401728,0.00017992,2]
[322883867,1713475843132,-157.041906,0.00017992,2]
[322883868,1713475843143,-157.041906,0.00017992,2]
[322883869,1713475843152,-157.041906,0.00017992,2]
[322883870,1713475843160,-157.041906,0.00017992,2]
[322883871,1713475843169,-157.041906,0.00017992,2]
[322883872,1713475843178,-502.46,0.00017992,2]
[322883873,1713475843188,-502.46,0.00017992,2]
[322883874,1713475843197,-157.041905,0.00017993,2]
[322883875,1713475843206,-157.041905,0.00017993,2]
[322883876,1713475843216,-157.041905,0.00017993,2]
[322883877,1713475843225,-157.041905,0.00017993,2]
[322883878,1713475843234,-16977.97448994,0.00017993,2]
[322883879,1713475843244,-502.46,0.00017993,2]
[322883880,1713475843253,-502.46,0.00017993,2]
[322883881,1713475843262,-502.46,0.00017993,2]
[322883882,1713475843271,-502.46,0.00017993,2]
[322883883,1713475843280,-502.46,0.00017993,2]
[322883884,1713475843289,-502.46,0.00017993,2]
[322883885,1713475843299,-577.0,0.00017994,2]
[322883886,1713475843310,-157.041905,0.00017994,2]
[322883887,1713475843319,-157.041905,0.00017994,2]
[322883888,1713475843328,-157.041905,0.00017994,2]
[322883889,1713475843337,-157.041905,0.00017994,2]
[322883890,1713475843347,-157.041905,0.00017994,2]
[322883891,1713475843356,-275674.52533144,0.00017994,2]
[322883892,1713475843370,-517.11928884,0.00017994,2]
[322883893,1713475843381,-844.06912773,0.00017994,2]
[322883894,1713475844147,-662.47809905,0.00017994,2]
[322883895,1713475844159,-696.2,0.00017994,2]
[322883896,1713475844200,-45955.9814627,0.00017994,2]
[322883897,1713475844211,-4896.92,0.00017994,2]
[322883924,1713475846008,-313.57148398,0.00017799,2]
[322883925,1713475846018,-332.81831617,0.00017994,2]
[322883930,1713475846082,-1458.70376593,0.00017994,2]
[322883942,1713475846190,-1883.65102,0.00017994,2]
[322883945,1713475846202,-31010.9589,0.00017994,2]
[322883954,1713475846274,-387.65933245,0.00017994,2]
[322883956,1713475846285,-251.06618023,0.00017994,2]
[322883958,1713475846296,-1838.75385252,0.00017994,2]
[322883960,1713475846310,-298.774,0.00017994,2]
[322883963,1713475846320,-34258.0187931,0.00017994,2]
[322883964,1713475846711,-1962.2339759,0.00017994,2]
[322883965,1713475846856,-278.05523846,0.00017994,2]
[322883966,1713475846869,-1104.6360013,0.00017994,2]
[322883967,1713475846991,-880.029151,0.00017994,2]
[322883968,1713475847002,-543.48777685,0.00017994,2]
[322883969,1713475850366,-626.08111507,0.0001735,2]
[322883970,1713475850379,-627.91888493,0.0001735,2]
[322883971,1713475850388,-305.07906936,0.00017799,2]
[322883972,1713475850398,-156.58176249,0.00017799,2]
[322883973,1713475850408,-5142.01763517,0.000179,2]
[322883974,1713475850420,-1309.99765462,0.000179,2]
[322883975,1713475850532,-1047.98471021,0.000179,2]
[322883976,1713475850542,-348.53728979,0.00017993,2]
[322883977,1713475850553,-10210.21449479,0.00017993,2]
[322883978,1713475850564,-18054.57618726,0.00017994,2]
[322883979,1713475850575,-38828.63791428,0.00017994,2]
[322883980,1713475850687,-18560.266541,0.00017994,2]
[322883981,1713475850729,-556.5600005,0.00017994,2]
[322883982,1713475850740,-12716.6223639,0.00017994,2]
[322883983,1713475850752,-175821.93573485,0.00017994,2]
[322883984,1713475850832,-14522.91221009,0.00017994,2]
[322883985,1713475854132,26342.69513946,0.00015,2]
[322883987,1713476462788,541.19,0.00014498,2]
[322883988,1713477013206,-1000.0,0.0001611,2]
[322883989,1713477013230,-3155.0,0.00016111,2]
[322884021,1713477033974,-426.5884709,0.0001611,2]
[322884022,1713477033989,-312.06068321,0.0001611,2]
[322884023,1713477034000,-460.55939495,0.0001611,2]
[322884024,1713477034011,-5813.54042561,0.0001611,2]
[322884025,1713477034022,-433.58213082,0.0001611,2]
[322884026,1713477034065,-990.04107208,0.0001611,2]
[322884027,1713477034116,-338.70707334,0.0001611,2]
[322884028,1713477034128,-117.55763975,0.0001611,2]
[322884029,1713477034138,-689.5847378,0.00016111,2]
[322884030,1713477034151,-531.38271183,0.00016111,2]
[322884031,1713477034161,-233.43,0.00016212,2]
[322884032,1713477034171,-507.28,0.00016213,2]
[322884033,1713477034180,-1760.88065917,0.00016254,2]
[322884096,1713477038790,-22139.11934083,0.00016254,2]
[322884097,1713477038799,-250.0,0.0001627,2]
[322884098,1713477038808,-164.63,0.00016279,2]
[322884099,1713477038818,-200.0,0.00016283,2]
[322884100,1713477038830,-1132.94,0.00016352,2]